bitfinex/quotes_SOLUSD_20240906
["timestamp","ask_amount","ask_price","bid_price","bid_amount"]
[1725626771616,24.9151,132.66,132.57,7.5429]
[1725626772326,7.541,132.61,132.56,7.5435]
[1725626772636,7.5421,132.59,132.55,18.8597]
[1725626772836,7.5412,132.61,132.55,18.8597]
[1725626773038,7.5386,132.66,132.61,7.5408]
[1725626773248,7.539,132.65,132.6,7.5412]
[1725626773417,56.5215,132.7,132.59,18.8542]
[1725626773418,7.5398,132.63,132.59,18.8542]
[1725626773626,7.541,132.61,132.55,18.8595]
[1725626774512,7.541,132.61,132.56,7.5435]
[1725626774840,7.5421,132.59,132.55,26.4036]
[1725626775045,18.8482,132.64,132.56,7.5437]
[1725626775046,7.5413,132.61,132.56,7.5437]
[1725626775217,7.5414,132.6,132.56,7.5437]
[1725626775419,7.5413,132.61,132.57,7.543]
[1725626775635,37.6893,132.67,132.55,18.8595]
[1725626775636,18.8447,132.67,132.55,47.90965832]
[1725626775827,18.8405,132.7,132.61,18.8516]
[1725626776544,7.5384,132.66,132.61,26.3923]
[1725626777053,37.6805,132.7,132.58,18.8558]
[1725626777256,0.85828405,132.69,132.53,47.90965832]
[1725626777748,7.5404,132.62,132.58,7.5425]
[1725626778437,7.5393,132.64,132.6,7.541]
[1725626778614,18.8427,132.68,132.61,1.50777038]
[1725626778820,7.5373,132.68,132.64,7.5389]
[1725626779052,7.5363,132.7,132.65,9.04589586]
[1725626779345,6.2252,132.71,132.65,18.8461]
[1725626779518,6.2252,132.71,132.59,85.61835832]
[1725626779519,7.5347,132.72,132.68,7.5367]
[1725626779720,6.2319,132.76,132.68,1.50697763]
[1725626779933,6.2319,132.76,132.72,7.5346]
[1725626779934,7.5324,132.76,132.72,7.5346]
[1725626780143,7.5324,132.76,132.73,1.50656707]
[1725626780347,7.5324,132.76,132.71,26.3724]
[1725626780943,18.8247,132.81,132.71,26.3725]
[1725626781164,38.51148405,132.8,132.68,18.8419]
[1725626781325,0.85828405,132.83,132.72,18.836]
[1725626781526,7.5323,132.77,132.72,26.3705]
[1725626782026,6.2319,132.84,132.72,18.836]
[1725626782220,7.5317,132.78,132.72,26.3705]
[1725626782629,7.5317,132.78,132.73,7.5339]
[1725626782836,7.5317,132.78,132.72,18.836]
[1725626782837,7.5312,132.78,132.72,26.3705]
[1725626783047,7.5309,132.79,132.72,18.836]
[1725626783321,7.5309,132.79,132.73,7.5339]
[1725626783539,7.5309,132.79,132.74,7.5332]
[1725626784122,18.823,132.82,132.72,18.836]
[1725626784123,0.85828405,132.81,132.72,18.836]
[1725626784443,0.85828405,132.81,132.69,18.8407]
[1725626784444,18.8265,132.8,132.69,18.8407]
[1725626784918,0.85828405,132.79,132.69,18.8407]
[1725626785324,7.5324,132.76,132.71,7.5351]
[1725626785552,7.5318,132.77,132.72,7.5344]
[1725626785855,7.5318,132.77,132.71,18.8375]
[1725626785856,7.5316,132.78,132.73,7.5338]
[1725626786021,7.5308,132.79,132.74,7.5334]
[1725626786338,7.5302,132.8,132.75,7.5329]
[1725626786531,6.2319,132.84,132.69,37.6814]
[1725626786532,0.85828405,132.83,132.69,37.6814]
[1725626786840,6.2319,132.84,132.69,37.6814]
[1725626786841,7.5318,132.77,132.72,7.5346]
[1725626787147,0.85828405,132.82,132.72,18.8358]
[1725626787337,0.85828405,132.82,132.71,7.5347]
[1725626787338,7.5324,132.76,132.71,7.5347]
[1725626787731,18.8286,132.78,132.69,26.376]
[1725626788049,7.5341,132.73,132.69,26.376]
[1725626788421,7.5337,132.74,132.69,26.376]
[1725626788622,0.85828405,132.77,132.66,18.8442]
[1725626788817,37.6561,132.79,132.64,47.90965832]
[1725626789057,7.533,132.75,132.7,7.5353]
[1725626789346,37.6473,132.82,132.68,18.8415]
[1725626789347,18.8226,132.82,132.73,7.5335]
[1725626789532,18.8226,132.82,132.74,7.533]
[1725626789533,7.5309,132.79,132.74,7.533]
[1725626789729,7.5307,132.79,132.74,7.5332]
[1725626789934,7.5317,132.78,132.73,7.5339]
[1725626790148,6.2319,132.84,132.74,20.33957952]
[1725626790330,6.2319,132.84,132.76,18.8303]
[1725626790663,7.5293,132.82,132.77,7.5313]
[1725626790945,34.8364,132.85,132.76,18.8303]
[1725626790946,16.0174,132.85,132.79,7.5306]
[1725626791121,16.0174,132.85,132.76,18.8303]
[1725626791318,7.5288,132.83,132.78,7.5309]
[1725626791522,7.5288,132.83,132.79,7.5306]
[1725626791719,16.0174,132.85,132.78,18.8275]
[1725626791720,7.5291,132.82,132.78,18.8275]
[1725626791954,7.5284,132.83,132.78,18.8275]
[1725626792478,7.529,132.82,132.78,26.3586]
[1725626792757,7.5294,132.82,132.78,18.8275]
[1725626793061,7.5294,132.82,132.77,7.5317]
[1725626793062,0.85828405,132.84,132.76,7.5323]
[1725626793250,0.85828405,132.84,132.75,18.8315]
[1725626793251,19.67868405,132.84,132.7,47.90965832]
[1725626793457,16.0174,132.85,132.73,7.5337]
[1725626793458,7.5312,132.78,132.73,7.5337]
[1725626793751,7.5308,132.79,132.74,18.8333]
[1725626793974,18.8227,132.82,132.75,7.5324]
[1725626794139,7.5305,132.8,132.75,7.5324]
[1725626794335,34.8364,132.85,132.76,7.5322]
[1725626794751,18.8215,132.83,132.75,7.5328]
[1725626795264,7.5299,132.81,132.76,7.5323]
[1725626795631,7.5299,132.81,132.76,18.8302]
[1725626795930,7.5286,132.83,132.78,18.8276]
[1725626796260,18.65575339,132.89,132.8,18.8247]
[1725626796261,25.2022,132.89,132.8,18.8247]
[1725626796473,7.5277,132.85,132.81,1.50555068]
[1725626797142,7.5277,132.85,132.81,1.50539612]
[1725626797546,7.5277,132.85,132.81,9.03489612]
[1725626797755,25.2022,132.89,132.83,7.5283]
[1725626798758,7.5262,132.87,132.83,7.5283]
[1725626799154,7.5251,132.89,132.84,7.5273]
[1725626799464,7.5251,132.89,132.85,7.5271]
[1725626799839,7.5251,132.89,132.86,1.50492274]
[1725626800039,7.5251,132.89,132.85,7.5271]
[1725626800439,8.3830134,132.91,132.86,26.343]
[1725626800643,7.5245,132.9,132.86,18.8165]
[1725626800941,0.8587134,132.91,132.79,47.90965832]
[1725626801143,18.8129,132.89,132.79,47.90965832]
[1725626801447,0.8587134,132.91,132.8,7.53]
[1725626801448,7.5278,132.85,132.8,7.53]
[1725626801649,1.71699745,132.91,132.83,18.8207]
[1725626801650,0.8587134,132.91,132.83,18.8207]
[1725626801851,0.8587134,132.91,132.8,18.8242]
[1725626802044,7.5269,132.86,132.82,7.5288]
[1725626802244,52.23518405,132.85,132.68,6.1595]
[1725626802452,7.5307,132.79,132.74,7.5331]
[1725626802775,7.5294,132.82,132.73,47.90965832]
[1725626802943,7.5274,132.85,132.8,7.53]
[1725626803141,7.5273,132.85,132.8,7.53]
[1725626803340,7.5273,132.85,132.77,47.90965832]
[1725626803341,6.0785,132.9,132.82,7.5285]
[1725626803559,6.0785,132.9,132.81,7.5294]
[1725626803560,7.5267,132.86,132.81,7.5294]
[1725626803763,6.0785,132.9,132.8,18.8243]
[1725626803764,6.0785,132.9,132.82,7.5285]
[1725626803967,24.8903,132.9,132.81,7.5294]
[1725626804463,7.5259,132.88,132.83,7.5283]
[1725626804677,0.8587134,132.91,132.84,18.8189]
[1725626804978,0.8587134,132.91,132.81,22.73]
[1725626804979,0.8587134,132.91,132.88,18.8133]
[1725626805155,0.8587134,132.91,132.9,7.5244]
[1725626805474,0.8587134,133.04,132.96,7.5205]
[1725626805475,7.5176,133.03,132.96,7.5205]
[1725626805647,0.8587134,133.04,132.96,7.5205]
[1725626805648,7.5179,133.02,132.96,7.5205]
[1725626805977,7.5179,133.02,132.97,7.5204]
[1725626806145,7.5172,133.03,132.98,7.5199]
[1725626806483,0.8587134,133.04,132.99,1.5034662]
[1725626806949,7.5171,133.03,132.97,7.5204]
[1725626807151,0.8587134,133.04,132.95,18.8031]
[1725626807380,0.8587134,133.04,132.92,18.808]
[1725626807381,1.71699745,133.04,132.92,18.808]
[1725626807865,1.71699745,133.04,132.93,7.5222]
[1725626807866,7.5193,133.0,132.93,7.5222]
[1725626808068,7.5195,132.99,132.93,7.5222]
[1725626808452,0.8587134,133.04,132.92,18.808]
[1725626808453,18.7941,133.03,132.92,18.808]
[1725626808643,18.7941,133.03,132.93,45.0]
[1725626808840,0.8587134,133.04,132.96,7.5205]
[1725626809071,0.8587134,133.04,132.95,18.8039]
[1725626809451,7.5189,133.0,132.95,18.8039]
[1725626810273,7.5183,133.01,132.95,18.8039]
[1725626810776,7.5193,132.99,132.95,26.3252]
[1725626811062,7.5193,132.99,132.95,18.8039]
[1725626811271,0.8587134,133.04,132.95,18.8039]
[1725626811568,7.5205,132.97,132.92,18.8076]
[1725626811870,18.7938,133.03,132.89,18.8124]
[1725626811871,7.5221,132.95,132.89,18.8124]
[1725626812085,0.85828405,132.99,132.89,18.8124]
[1725626812248,7.5222,132.94,132.89,26.3369]
[1725626812752,7.5212,132.96,132.91,7.5238]
[1725626812946,18.7961,133.01,132.89,18.8124]
[1725626812947,18.7996,132.99,132.89,26.3368]
[1725626813249,18.7996,132.99,132.89,26.3372]
[1725626814166,7.5221,132.94,132.89,26.3372]
[1725626814472,7.522,132.95,132.9,7.5242]
[1725626814860,7.5211,132.96,132.91,7.5234]
[1725626815065,7.5211,132.96,132.92,7.5233]
[1725626815265,7.5205,132.97,132.92,7.5231]
[1725626815577,7.5212,132.96,132.92,7.5231]
[1725626816076,7.5221,132.94,132.9,7.5243]
[1725626816382,7.5223,132.94,132.9,7.5242]
[1725626816746,7.5218,132.95,132.9,7.5242]
[1725626816975,7.5218,132.95,132.91,7.5236]
[1725626817155,18.8003,132.98,132.91,7.5236]
[1725626817156,7.5211,132.96,132.91,7.5236]
[1725626817475,7.5218,132.95,132.91,7.5236]
[1725626817654,7.5218,132.95,132.85,37.6362]
[1725626817655,0.85828405,133.0,132.85,37.6362]
[1725626817862,7.5234,132.92,132.87,26.3403]
[1725626818180,7.5239,132.91,132.87,26.3406]
[1725626818695,18.8058,132.94,132.84,18.8186]
[1725626819347,7.5254,132.89,132.84,26.3462]
[1725626819755,7.5246,132.9,132.85,7.527]
[1725626819964,7.5246,132.9,132.86,7.5266]
[1725626820276,7.5235,132.92,132.87,7.526]
[1725626820650,7.5259,132.88,132.84,7.5278]
[1725626820847,37.6111,132.94,132.82,7.5284]
[1725626820848,0.85828405,132.93,132.82,7.5284]
[1725626821048,7.5263,132.87,132.83,7.5283]
[1725626821658,18.8115,132.9,132.8,37.6505]
[1725626821659,7.5256,132.88,132.84,7.5277]
[1725626822061,18.8075,132.93,132.85,9.0322497]
[1725626822286,18.8075,132.93,132.84,26.3466]
[1725626822587,7.5273,132.85,132.81,26.3524]
[1725626822750,18.813,132.89,132.81,18.8229]
[1725626823267,18.8036,132.96,132.87,18.815]
[1725626823474,38.46878405,132.95,132.8,37.6505]
[1725626823651,7.527,132.86,132.81,26.3524]
[1725626823978,7.5257,132.88,132.83,7.5279]
[1725626824161,7.5262,132.87,132.83,7.5279]
[1725626824363,7.5265,132.87,132.82,7.5288]
[1725626824569,7.5265,132.87,132.8,37.6505]
[1725626824570,7.5252,132.89,132.83,18.8206]
[1725626824780,29.1772,132.92,132.84,37.639]
[1725626825071,18.8036,132.96,132.88,7.5254]
[1725626825244,7.5238,132.92,132.87,26.3404]
[1725626825552,18.8058,132.94,132.84,26.3462]
[1725626825755,7.5257,132.88,132.83,7.528]
[1725626826080,7.5263,132.87,132.83,7.528]
[1725626826263,19.66748405,132.92,132.82,7.5288]
[1725626826264,18.8115,132.9,132.82,7.5288]
[1725626826444,18.8115,132.9,132.83,7.5282]
[1725626826445,7.5263,132.87,132.83,7.5282]
[1725626826653,18.8115,132.9,132.86,7.5267]
[1725626826654,7.5249,132.9,132.86,7.5267]
[1725626826959,18.8078,132.93,132.85,26.345]
[1725626826960,7.5251,132.89,132.85,26.345]
[1725626827257,7.5246,132.9,132.85,26.345]
[1725626827464,7.5246,132.9,132.86,7.5266]
[1725626827657,7.5235,132.92,132.88,7.5255]
[1725626827853,18.8035,132.96,132.89,7.5249]
[1725626827854,7.5228,132.93,132.89,7.5249]
[1725626828069,21.3392,132.97,132.9,7.5243]
[1725626828070,7.5223,132.94,132.9,7.5243]
[1725626828455,21.3392,132.97,132.91,7.5238]
[1725626828655,7.5215,132.96,132.92,7.5232]
[1725626828876,7.5215,132.96,132.91,26.3332]
[1725626829077,7.5217,132.95,132.91,26.3332]
[1725626829259,7.5223,132.94,132.91,18.8095]
[1725626829765,7.5217,132.95,132.91,26.3333]
[1725626830468,54.0229,133.01,132.93,7.5226]
[1725626830469,7.5205,132.97,132.93,7.5226]
[1725626830780,7.5205,132.97,132.94,1.50404908]
[1725626830999,7.5198,132.99,132.94,9.02574908]
[1725626831157,7.5198,132.99,132.95,7.5214]
[1725626831471,7.5189,133.0,132.95,26.3251]
[1725626831674,7.5189,133.0,132.95,18.8036]
[1725626831880,6.2051,133.03,132.95,18.8036]
[1725626831881,6.2051,133.03,132.97,7.52]
[1725626832082,7.519,133.0,132.95,18.8036]
[1725626832255,7.5194,132.99,132.95,26.3251]
[1725626832455,7.5205,132.97,132.92,26.3303]
[1725626832765,7.5205,132.97,132.93,7.5226]
[1725626832964,7.52,132.98,132.93,7.5226]
[1725626833161,7.5194,132.99,132.94,7.5218]
[1725626833360,7.5189,133.0,132.94,18.8049]
[1725626833979,8.3756134,133.04,132.93,47.640544]
[1725626834275,8.3756134,133.04,133.0,7.5183]
[1725626834487,0.8587134,133.04,133.03,7.5171]
[1725626834853,0.8587134,133.04,133.02,26.3112]
[1725626835086,0.8587134,133.04,133.03,7.5171]
[1725626835455,0.8587134,133.04,133.02,26.3112]
[1725626835657,0.8587134,133.04,132.99,18.7977]
[1725626836088,0.8587134,133.04,133.01,18.7946]
[1725626836454,0.8587134,133.04,133.02,7.5175]
[1725626836674,0.8587134,133.04,133.03,7.5171]
[1725626837189,0.8587134,133.04,133.03,52.5171]
[1725626838375,0.8587134,133.04,133.01,18.7946]
[1725626838581,0.8587134,133.04,133.02,7.5176]
[1725626838956,0.8587134,133.04,133.01,26.3127]
[1725626839373,0.8587134,133.04,133.02,7.5175]
[1725626839781,0.8587134,133.04,132.98,94.68577426]
[1725626839782,0.8587134,133.04,132.98,18.7992]
[1725626839959,0.8587134,133.04,133.0,7.5187]
[1725626840363,0.8587134,133.04,133.01,7.5181]
[1725626840560,0.8587134,133.04,133.0,7.5187]
[1725626840786,0.8587134,133.04,132.99,7.5192]
[1725626840787,7.5171,133.03,132.99,7.5192]
[1725626841081,0.8587134,133.04,132.98,18.7992]
[1725626841082,0.8587134,133.04,133.01,7.518]
[1725626841264,0.8587134,133.04,133.03,7.5171]
[1725626841687,0.8587134,133.04,133.02,26.3109]
[1725626841864,0.8587134,133.04,133.03,7.5171]
[1725626842262,0.8587134,133.04,133.03,52.5171]
[1725626842584,0.8587134,133.04,133.03,109.60577426]
[1725626842787,7.5116,133.13,133.03,103.59111493]
[1725626842991,25.0979,133.16,133.07,18.7869]
[1725626843300,7.5157,133.06,133.01,7.5181]
[1725626843457,37.552,133.15,133.01,7.5181]
[1725626843458,1.71656809,133.11,133.01,7.5181]
[1725626843661,37.81762622,133.15,132.96,6.5322]
[1725626843662,1.71656809,133.1,132.96,6.5322]
[1725626843886,18.7877,133.07,132.96,6.5322]
[1725626844067,37.81762622,133.15,133.0,7.5183]
[1725626844385,37.81762622,133.15,132.96,6.5322]
[1725626844386,11.71656809,133.14,132.98,26.3181]
[1725626844594,7.5171,133.03,132.98,26.3181]
[1725626844782,7.5166,133.04,132.98,18.7988]
[1725626845287,7.5175,133.03,132.98,18.7988]
[1725626845496,7.5171,133.03,132.98,26.3186]
[1725626845968,18.7892,133.06,132.98,18.7988]
[1725626846162,7.5166,133.04,132.98,18.7988]
[1725626846367,6.1332,133.09,133.0,7.5186]
[1725626846368,7.516,133.05,133.0,7.5186]
[1725626846965,6.1332,133.09,133.0,18.7961]
[1725626848368,7.5155,133.06,133.01,7.5181]
[1725626849371,6.1332,133.09,132.98,7.5195]
[1725626849372,7.5176,133.03,132.98,7.5195]
[1725626849579,7.5176,133.03,132.97,18.8004]
[1725626849986,1.71656809,133.07,132.94,18.8047]
[1725626850197,1.71656809,133.07,132.94,26.3267]
[1725626850198,7.5197,132.99,132.94,26.3267]
[1725626850518,7.5197,132.99,132.92,37.6146]
[1725626850519,18.7953,133.02,132.92,7.5229]
[1725626850792,7.5206,132.97,132.92,7.5229]
[1725626851294,7.5206,132.97,132.92,7.5228]
[1725626851612,7.5198,132.99,132.95,7.5214]
[1725626851784,7.5189,133.0,132.95,7.5214]
[1725626852097,18.7933,133.03,132.96,7.5209]
[1725626852098,7.5183,133.01,132.96,7.5209]
[1725626852276,7.5188,133.0,132.96,7.5209]
[1725626852481,16.3164,133.04,132.97,18.8007]
[1725626852684,7.5186,133.01,132.97,18.8007]
[1725626852987,16.3164,133.04,132.95,7.5214]
[1725626852988,36.82496809,133.04,132.95,7.5214]
[1725626853195,35.1084,133.04,132.95,7.5214]
[1725626853493,7.5188,133.0,132.95,7.5214]
[1725626853675,16.3164,133.04,132.98,7.5195]
[1725626854072,7.5177,133.02,132.98,7.5195]
[1725626854392,7.5172,133.03,132.99,7.5192]
[1725626854576,6.1332,133.09,132.98,57.08867426]
[1725626854776,7.5149,133.07,133.03,18.7922]
[1725626854986,7.5147,133.08,133.03,26.3092]
[1725626856095,7.5149,133.07,133.03,26.3092]
[1725626856272,7.5165,133.05,133.0,18.796]
[1725626856595,15.1933,133.1,133.02,18.7935]
[1725626856806,15.1933,133.1,133.0,57.08867426]
[1725626857095,15.1933,133.1,133.05,7.5155]
[1725626857096,7.5137,133.09,133.05,7.5155]
[1725626857309,7.5132,133.1,133.05,7.5155]
[1725626857473,18.7811,133.12,133.04,18.7906]
[1725626857877,18.7835,133.1,133.01,18.7946]
[1725626858369,1.71656809,133.09,133.01,18.7946]
[1725626858572,7.5152,133.07,133.03,7.517]
[1725626858800,6.2896,133.13,133.03,18.7923]
[1725626858801,25.069,133.13,133.03,18.7923]
[1725626858971,7.514,133.09,133.05,7.5158]
[1725626859172,7.5143,133.08,133.04,7.5165]
[1725626859496,7.5132,133.1,133.03,18.7923]
[1725626859789,7.5144,133.08,133.04,7.5163]
[1725626860369,7.5148,133.07,133.03,26.3089]
[1725626860565,25.069,133.13,133.03,18.7923]
[1725626860764,25.069,133.13,133.05,7.5159]
[1725626860765,7.514,133.09,133.05,7.5159]
[1725626861667,1.71656809,133.12,133.03,18.7923]
[1725626861866,7.5143,133.08,133.04,7.5161]
[1725626862273,7.5138,133.09,133.05,7.5158]
[1725626862894,7.5129,133.11,133.06,7.5149]
[1725626863099,6.2896,133.13,133.07,7.5147]
[1725626863407,7.513,133.11,133.07,7.5147]
[1725626864302,7.5121,133.12,133.08,7.5141]
[1725626865190,7.5129,133.11,133.07,26.3014]
[1725626865397,7.5133,133.1,133.05,7.5155]
[1725626865571,7.5125,133.11,133.06,18.7876]
[1725626865769,7.5123,133.12,133.08,7.5142]
[1725626865966,7.5126,133.11,133.07,7.5146]
[1725626866781,7.5126,133.11,133.07,7.5144]
[1725626866782,7.5127,133.11,133.07,7.5144]
[1725626866977,18.7783,133.14,133.02,57.08867426]
[1725626866978,15.1059,133.15,133.08,18.7855]
[1725626867178,7.5113,133.14,133.1,7.5128]
[1725626867373,7.5105,133.15,133.11,7.5124]
[1725626867580,7.5105,133.15,133.1,18.7827]
[1725626867581,0.8587134,133.17,133.1,57.08867426]
[1725626867785,0.8587134,133.17,133.15,7.5099]
[1725626868081,0.8587134,133.17,133.16,7.5097]
[1725626868787,0.8587134,133.17,133.14,18.777]
[1725626868788,0.8587134,133.17,133.15,7.5101]
[1725626869193,0.8587134,133.17,133.11,18.7807]
[1725626869400,0.8587134,133.17,133.1,7.5127]
[1725626869401,7.5104,133.15,133.1,7.5127]
[1725626869581,0.8587134,133.17,133.09,7.5133]
[1725626869784,0.8587134,133.17,133.08,18.7846]
[1725626870015,0.8587134,133.17,133.09,7.5133]
[1725626870310,21.1908,133.16,133.05,18.7889]
[1725626870675,21.1908,133.16,133.08,7.5141]
[1725626870676,7.5122,133.12,133.08,7.5141]
[1725626870902,21.1908,133.16,133.09,7.5136]
[1725626871115,21.1908,133.16,133.08,7.514]
[1725626871116,7.5121,133.12,133.08,7.514]
[1725626871402,22.90736809,133.16,133.04,94.66867426]
[1725626871403,7.511,133.14,133.1,7.5131]
[1725626871794,21.1908,133.16,133.11,7.5125]
[1725626872002,0.8587134,133.17,133.11,18.781]
[1725626872194,0.8587134,133.17,133.08,18.7846]
[1725626872386,0.8587134,133.17,133.09,7.5132]
[1725626872709,19.6321134,133.17,133.08,26.2986]
[1725626872887,19.6321134,133.17,133.08,18.7846]
[1725626872888,7.5124,133.12,133.08,18.7846]
[1725626873088,1.71656809,133.16,133.08,18.7846]
[1725626873395,7.5121,133.12,133.08,26.2988]
[1725626873906,7.5121,133.12,133.04,37.58]
[1725626873907,18.7761,133.15,133.02,63.29897426]
[1725626874112,0.8587134,133.17,133.01,37.5894]
[1725626874113,7.5147,133.08,133.01,37.5894]
[1725626874284,7.5138,133.09,133.04,7.5163]
[1725626874482,7.5143,133.08,133.04,7.5163]
[1725626874793,7.5138,133.09,133.04,7.5163]
[1725626874981,7.5138,133.09,133.05,7.5159]
[1725626875190,16.5234,133.12,133.06,7.5151]
[1725626875402,16.5234,133.12,133.04,18.7907]
[1725626875716,7.5133,133.1,133.04,26.3067]
[1725626875881,7.5133,133.1,133.01,37.5894]
[1725626875882,9.36921407,133.11,133.01,18.7946]
[1725626876194,1.71656809,133.1,133.01,18.7946]
[1725626876384,7.5157,133.06,133.01,26.3124]
[1725626876595,7.65264598,133.11,133.03,18.792]
[1725626877104,7.65264598,133.11,133.05,7.5154]
[1725626877105,15.16524598,133.11,133.05,7.5154]
[1725626877289,7.5133,133.1,133.05,7.5154]
[1725626877600,7.65264598,133.11,133.07,7.5146]
[1725626877601,1.30884598,133.11,133.07,7.5146]
[1725626877907,1.30884598,133.11,133.09,7.5135]
[1725626878091,1.30884598,133.11,133.1,1.50236171]
[1725626879005,7.5141,133.09,133.04,7.5164]
[1725626880105,8.82184598,133.11,133.03,18.792]
[1725626880305,1.30884598,133.11,133.04,94.66927426]
[1725626880510,1.30884598,133.11,133.08,7.514]
[1725626881001,1.30884598,133.11,133.09,20.28646059]
[1725626881216,1.30884598,133.11,133.09,18.784]
[1725626881383,1.30884598,133.11,133.07,7.5148]
[1725626882007,1.30884598,133.11,133.09,7.5136]
[1725626882314,1.30884598,133.11,133.1,7.5131]
[1725626882479,1.30884598,133.11,133.1,64.60177426]
[1725626882884,0.8587134,133.17,133.13,18.7773]
[1725626883084,8.3679134,133.17,133.12,7.5115]
[1725626883308,1.30815814,133.16,133.11,7.5124]
[1725626883492,1.30815814,133.16,133.07,18.7862]
[1725626883687,1.30815814,133.16,133.06,57.08867426]
[1725626884014,1.30815814,133.16,133.05,57.08867426]
[1725626884184,1.30815814,133.16,133.08,18.7845]
[1725626884389,7.511,133.14,133.09,7.5133]
[1725626884708,1.30815814,133.16,133.06,7.5153]
[1725626884709,7.513,133.11,133.06,7.5153]
[1725626884899,7.5121,133.12,133.07,7.5147]
[1725626885204,20.08285814,133.16,133.12,7.5119]
[1725626885205,1.30815814,133.16,133.12,7.5119]
[1725626885407,1.30815814,133.16,133.11,18.7806]
[1725626885599,7.5111,133.14,133.09,7.5136]
[1725626886703,7.5111,133.14,133.08,18.7855]
[1725626886704,1.30815814,133.16,133.08,57.08867426]
[1725626886906,1.30815814,133.16,133.07,57.08867426]
[1725626886907,1.30815814,133.16,133.15,7.5103]
[1725626887105,1.30815814,133.16,133.14,26.2866]
[1725626887416,1.30815814,133.16,133.12,7.5118]
[1725626888217,1.30815814,133.16,133.15,7.5103]
[1725626889000,1.30815814,133.16,133.11,56.3425]
[1725626889385,1.30815814,133.16,133.13,7.5114]
[1725626889700,1.30815814,133.16,133.12,7.5118]
[1725626889907,1.30815814,133.16,133.11,26.293]
[1725626889908,8.81805814,133.16,133.11,26.293]
[1725626890100,7.5103,133.15,133.11,18.7806]
[1725626890290,1.30815814,133.16,133.15,45.0619]
[1725626890291,5.814e-05,133.16,133.15,45.0619]
[1725626890498,0.8587134,133.3,133.18,22.73]
[1725626890715,0.8587134,133.3,133.25,7.5042]
[1725626891027,0.8587134,133.3,133.19,57.08867426]
[1725626891028,0.8587134,133.3,133.26,7.5039]
[1725626891715,1.71656809,133.29,133.23,7.5057]
[1725626892011,7.503,133.28,133.23,7.5057]
[1725626892199,0.8587134,133.3,133.22,18.7653]
[1725626892598,7.5049,133.25,133.2,7.507]
[1725626892798,0.8587134,133.3,133.19,18.7696]
[1725626892988,0.8587134,133.3,133.22,18.7653]
[1725626893190,0.8587134,133.3,133.22,75.85397426]
[1725626893394,8.3611134,133.3,133.23,7.5053]
[1725626893697,8.3611134,133.3,133.24,7.5051]
[1725626893898,0.8587134,133.3,133.24,7.5051]
[1725626894093,8.3608134,133.3,133.24,7.5051]
[1725626894318,8.3608134,133.3,133.28,57.08867426]
[1725626894319,0.8587134,133.3,133.28,57.08867426]
[1725626894698,0.8587134,133.3,133.28,56.58867426]
[1725626895099,0.8587134,133.3,133.26,18.7594]
[1725626895306,10.07718149,133.3,133.24,7.5051]
[1725626895507,0.8587134,133.3,133.22,57.08867426]
[1725626895715,0.8587134,133.3,133.26,26.2637]
[1725626895907,0.8587134,133.3,133.27,57.08867426]
[1725626896413,0.8587134,133.3,133.26,26.2637]
[1725626896620,0.8587134,133.3,133.24,7.5047]
[1725626896621,7.5024,133.29,133.24,7.5047]
[1725626896810,0.8587134,133.3,133.24,1.50071229]
[1725626897009,8.3610134,133.3,133.24,64.59377426]
[1725626897213,0.8587134,133.3,133.24,64.59377426]
[1725626897415,0.8587134,133.3,133.25,7.5046]
[1725626897720,0.8587134,133.3,133.17,60.2753]
[1725626897721,7.504,133.27,133.21,57.08867426]
[1725626897914,6.3612,133.29,133.21,18.7668]
[1725626897915,7.5042,133.26,133.21,18.7668]
[1725626898327,6.3612,133.29,133.21,18.7668]